Cogmind - Beta 11 X11 @@@ ROGUE MODE // 2022.03.08 @ 19:00:37 Player: Thr33_1Nt Result: Destroyed by as-87327 with Assembled Rifle Performance ------------- Evolutions (0) 0 Regions Visited (2) 400 Robots Destroyed (16) 80 Value Destroyed (268) 268 Prototype IDs (0) 0 Alien Tech Used (0) 0 Bonus (0) 0 TOTAL SCORE: 748 Bonus ------- None Cogmind --------- Core Integrity 0/250 Matter 214/300 Energy 90/100 System Corruption 0% Temperature Cool (33) Movement Core (450) Ox8 Location -10/Mines Parts ------- > --- POWER (1) -------- (None) > --- PROPULSION (2) --- (None) > --- UTILITY (2) ------ Large Storage Unit Seismic Detector > --- WEAPON (2) ------- Medium Laser Rocket Launcher > --- INVENTORY (15) --- Light Ion Engine Light Ion Engine Light Ion Engine Aluminum Leg Aluminum Leg Wheel Wheel Flight Unit Heat Sink Small Matter Pod (50) Experimental Sensor Array EM Pulse Gun Medium Laser Small Laser Light Assault Rifle Peak State ------------ > --- POWER ------------ Ion Engine > --- PROPULSION ------- Aluminum Leg Aluminum Leg > --- UTILITY ---------- Large Storage Unit Seismic Detector > --- WEAPON ----------- Medium Laser Rocket Launcher > --- INVENTORY -------- Light Ion Engine Light Ion Engine Light Ion Engine Aluminum Leg Aluminum Leg Wheel Wheel Flight Unit Heat Sink Small Matter Pod Experimental Sensor Array EM Pulse Gun Medium Laser Small Laser Light Assault Rifle [Rating: 10] Favorites ----------- Power Ion Engine Engine Ion Engine Propulsion Aluminum Leg Leg Aluminum Leg Wheel Wheel Utility Seismic Detector Device Seismic Detector Storage Large Storage Unit Weapon Medium Laser Energy Gun Medium Laser Launcher Grenade Launcher Build | -11 -10 -10 ------- Run | Scr Mat Min Slots Evolved . | . . . Power . | . . . Propulsion . | . . . Utility . | . . . Weapon . | . . . Parts Attached 23 | 8 12 3 Power 3 | 2 1 . Engine 3 | 2 1 . Core . | . . . Reactor . | . . . Propulsion 5 | 2 3 . Treads . | . . . Leg 3 | . 3 . Wheel 2 | 2 . . Hover . | . . . Flight . | . . . Utility 3 | 2 1 . Device 1 | 1 . . Storage 2 | 1 1 . Processor . | . . . Hackware . | . . . Protection . | . . . Artifact . | . . . Weapon 12 | 2 7 3 Energy Gun 9 | 2 6 1 Energy Cannon . | . . . Ballistic Gun . | . . . Ballistic Cannon . | . . . Launcher 3 | . 1 2 Special Weapon . | . . . Impact Weapon . | . . . Slashing Weapon . | . . . Piercing Weapon . | . . . Special Melee Weapon . | . . . Unidentified Prototypes . | . . . Parts Lost 3 | . . 3 Power 1 | . . 1 Propulsion 2 | . . 2 Utility . | . . . Weapon . | . . . Highest Loss Streak 3 | . . 3 To Critical Strikes . | . . . Average Slot Usage (%) 99 | . 100 99 Engine 13 | . 14 13 Leg 25 | . 22 28 Wheel 2 | . 5 . Device 14 | . 14 14 Storage 14 | . 14 14 Energy Gun 27 | . 27 26 Launcher 1 | . . 1 Naked Turns . | . . . Heaviest Build 32 | 9 30 32 Greatest Support 20 | 20 20 20 Greatest Overweight (x) 1 | . 1 1 Average Overweight (x) . | . . 1 Largest Inventory Capacity 15 | 5 15 15 Average Capacity 14 | 5 14 15 Most Carried 15 | 5 15 15 Average Carried 13 | 2 12 14 Final Capacity 15 | 5 15 15 Final Carried 15 | 5 15 15 Class Distribution -------------------- 87% | Mutant 12% | Scavenger-Mutant Dominant Class ---------------- Mutant | -10/Materials Mutant | -10/Mines Resources | -11 -10 -10 ----------- Run | Scr Mat Min Matter Collected 442 | 330 96 16 Remotely . | . . . Salvage Created 341 | 67 237 37 Parts 27 | 5 17 5 Haulers Intercepted . | . . . Recyclers Shooed . | . . . Parts Field Recycled . | . . . Retrieved Matter . | . . . Parts Self-Destructed . | . . . Prevented . | . . . Kills | -11 -10 -10 ------- Run | Scr Mat Min Combat Hostiles Destroyed 17 | 1 10 6 Guns 11 | 1 9 1 AOE 6 | . 1 5 Classes Destroyed 5 | 3 1 1 Worker 1 | 1 . . Tunneler 1 | 1 . . Swarmer 9 | . 6 3 Grunt 5 | 1 4 . Assembled 3 | . . 3 Best Kill Streak 3 | 2 3 3 Combat Bots Only 3 | 1 3 3 Max Kills in Single Turn 3 | 1 2 3 Gunslinging . | . . . Exploded 3 | . 1 3 Melee . | . . . Uniques/NPCs Destroyed . | . . . Combat | -11 -10 -10 -------- Run | Scr Mat Min Damage Taken 861 | 33 462 366 Core 255 | 22 150 83 Absorbed by Shields . | . . . Core Remaining (%) 91 | 91 . . Volleys Fired 39 | 6 29 4 Largest 2 | 2 2 2 Hottest 83 | 80 80 83 Shots Fired 77 | 12 57 8 Gun 72 | 12 56 4 Cannon . | . . . Launcher 5 | . 1 4 Special . | . . . Kinetic . | . . . Thermal 72 | 12 56 4 Explosive 5 | . 1 4 Electromagnetic . | . . . Robot Hit Streak 8 | 8 6 4 Robot Miss Streak 3 | 1 3 2 Penetration Max . | . . . Secondary Targets . | . . . Shots Hit Robots 47 | 9 36 2 Core Hits 34 | 4 13 17 Critical Kills . | . . . Critical Parts Destroyed . | . . . Critical Strikes . | . . . Melee Attacks . | . . . Impact . | . . . Slashing . | . . . Piercing . | . . . Sneak Attacks . | . . . Combat Hostiles . | . . . Follow-up Attacks . | . . . Damage Inflicted 1105 | 115 439 551 Guns 540 | 115 401 24 Cannons . | . . . Explosions 565 | . 38 527 Melee . | . . . Ramming . | . . . Kinetic . | . . . Thermal 540 | 115 401 24 Explosive 565 | . 38 527 Electromagnetic . | . . . Impact . | . . . Slashing . | . . . Piercing . | . . . Highest Corruption . | . . . Average Corruption . | . . . Corruption Purged . | . . . Corruption Blocked . | . . . Overload Shots . | . . . Overflow Damage 32 | . . 32 Projectiles . | . . . Explosions 32 | . . 32 Melee . | . . . Knockbacks . | . . . Impact . | . . . Kinetic . | . . . Secondary . | . . . Self-Inflicted Damage 85 | . . 85 Shots 3 | . . 3 Rammed . | . . . Targets Rammed . | . . . Kicked . | . . . Crushed . | . . . Highest Temperature 216 | 90 216 83 Average Temperature 55 | 39 62 29 Received Heat Transfer 300 | 18 162 120 Siege Activations . | . . . Robots Corrupted . | . . . Combat Hostiles . | . . . Parts Fried . | . . . Impact Corruptions . | . . . Robots Melted . | . . . Combat Hostiles . | . . . Parts Melted 2 | . 2 . Heat Transferred 1224 | 250 900 74 Parts Sabotaged . | . . . Parts Stolen . | . . . Parts Stripped . | . . . Power Chain Reactions . | . . . Missiles Intercepted . | . . . Alert | -11 -10 -10 ------- Run | Scr Mat Min Peak Influence 389 | 30 389 111 Initial 19 | . 19 17 Average 105 | 7 176 54 Maximum Alert Level 1 | . 1 . Low Security (%) 83 | 100 62 100 Level 1 16 | . 37 . Level 2 . | . . . Level 3 . | . . . Level 4 . | . . . Level 5 . | . . . High Security . | . . . Max Security . | . . . Squads Dispatched 4 | . 4 . Investigation 2 | . 2 . Extermination . | . . . Reinforcement 2 | . 2 . Assault . | . . . Garrison . | . . . Intercept . | . . . Searches Triggered . | . . . Construction Impeded . | . . . Haulers Reinforced . | . . . Active Scanning Responses . | . . . Cargo Convoy Interrupts . | . . . Stealth | -11 -10 -10 --------- Run | Scr Mat Min Distress Signals 1 | . 1 . Communications Jammed . | . . . Distress Signals . | . . . Times Spotted 43 | 1 23 19 Peak Tracking Total 19 | 1 4 19 Tactical Retreats 2 | . 2 . Traps | -11 -10 -10 ------- Run | Scr Mat Min Traps Triggered 2 | . 2 . Indirectly . | . . . Trap Hack Attempts . | . . . Triggered . | . . . Disarmed . | . . . Reprogrammed . | . . . Reused . | . . . Traps Extracted . | . . . Installed . | . . . Triggered . | . . . Machines | -11 -10 -10 ---------- Run | Scr Mat Min Machines Disabled . | . . . Max in Single Turn . | . . . Machines Sabotaged . | . . . Garrisons Compromised . | . . . Overloaded Fab Kills . | . . . Hacking | -11 -10 -10 --------- Run | Scr Mat Min Machines Accessed 4 | . 4 . Terminals 3 | . 3 . Fabricators . | . . . Repair Stations . | . . . Recycling Units 1 | . 1 . Scanalyzers . | . . . Garrison Access . | . . . Total Hacks 9 | . 9 . Successful 6 | . 6 . Failed 3 | . 3 . Catastrophic . | . . . Database Lockouts . | . . . Manual 5 | . 5 . Terminals 4 | . 4 . Fabricators . | . . . Repair Stations . | . . . Recycling Units 5 | . 5 . Scanalyzers . | . . . Garrison Access . | . . . Terminal Hacks 2 | . 2 . Unreport Threat 1 | . 1 . Zone Layout 1 | . 1 . Fabricator Hacks . | . . . Repair Station Hacks . | . . . Recycling Unit Hacks 4 | . 4 . Recycle Component 1 | . 1 . Process 2 | . 2 . Retrieve Matter 1 | . 1 . Scanalyzer . | . . . Garrison Access Hacks . | . . . Unauthorized Hacks . | . . . Terminals . | . . . Fabricators . | . . . Repair Stations . | . . . Recycling Units . | . . . Scanalyzers . | . . . Garrison Access . | . . . Data Cores Recovered . | . . . Used . | . . . Hacking Detections 4 | . 4 . Full Trace Events . | . . . Feedback Events . | . . . Feedback Blocked . | . . . Robot Schematics Acquired . | . . . Robots Built . | . . . Authchips . | . . . Time . | . . . Total Robot Build Rating . | . . . Part Schematics Acquired . | . . . Parts Built . | . . . Authchips . | . . . Time . | . . . Total Part Build Rating . | . . . Parts Repaired . | . . . Time . | . . . Parts Recycled 1 | . 1 . Recycled Matter . | . . . Retrieved Matter . | . . . Retrieved Components . | . . . Parts Scanalyzed . | . . . Part Schematics Acquired . | . . . Parts Damaged . | . . . Bothacking | -11 -10 -10 ------------ Run | Scr Mat Min Used RIF Installer . | . . . Robots Hacked . | . . . Non-combat . | . . . Combat . | . . . Robot Hacks Applied . | . . . Relay Couplers Released . | . . . Fabnet Peak Effective % . | . . . Robots Rewired . | . . . Allies Hacked . | . . . Hacks Repelled . | . . . Allies | -11 -10 -10 -------- Run | Scr Mat Min Total Allies . | . . . Largest Group . | . . . Highest-Rated Group . | . . . Highest-Rated Ally . | . . . Total Orders . | . . . Ally Attacks . | . . . Total Damage . | . . . Kills . | . . . Allies Corrupted . | . . . Allies Melted . | . . . Intel | -11 -10 -10 ------- Run | Scr Mat Min Robot Analysis Total . | . . . Derelict Logs Recovered 3 | . . 3 Drone Launches . | . . . Drone Recoveries . | . . . Exploration | -11 -10 -10 ------------- Run | Scr Mat Min Turns Passed 1631 | 91 721 819 Spaces Moved 876 | 77 377 422 Core 15 | 15 . . Treads . | . . . Legs 689 | . 267 422 Wheels 172 | 62 110 . Hover . | . . . Flight . | . . . Fastest Speed 50 | 50 80 190 Average Speed 167 | 74 160 190 Slowest Speed 190 | 80 190 190 Overloaded Moves . | . . . Propulsion Burnouts . | . . . Robots Hopped . | . . . Cave-ins Triggered . | . . . Exploration Rate (%) 42 | 9 49 69 Regions Visited 2 Branch Regions 1 Pre-discovered Areas 1 | . . 1 Known Exits Taken . | . . . Unknown Exits Taken 2 | 1 1 . Scrap Searched . | . . . Spaces Dug . | . . . Terrain Destroyed 36 | . 4 32 Melee . | . . . Projectile . | . . . AOE 36 | . 4 32 Terrain Rammed . | . . . Walls Destroyed . | . . . Machines Disabled . | . . . Actions | -11 -10 -10 --------- Run | Scr Mat Min Total 963 | 94 434 435 Wait 3 | . 3 . Move 874 | 76 376 422 Hop . | . . . Pick Up 16 | 4 9 3 Fast Attach 8 | 7 1 . Attach 1 | . . 1 Detach . | . . . Swap 14 | 1 11 2 Drop 8 | . 5 3 Fire 39 | 6 29 4 Melee . | . . . Ram . | . . . Kick . | . . . Crush . | . . . Escape Stasis . | . . . Rewire . | . . . Trap . | . . . Miscellaneous . | . . . Route ------- -11/Scrapyard -10/Materials (discovered 3 exits: [*Mat x2] / [*Min]) -10/Mines (discovered 2 exits: [*Mat] / [*Exi]) History --------- Turn | Location | Event 2 | -11/Scrapyard | Met Revision 17 62 | -11/Scrapyard | Discovered new exit (range 8) 92 | -11/Scrapyard | Entered Materials 305 | -10/Materials | Build established: Mutant 349 | -10/Materials | Core integrity fell below 50% 469 | -10/Materials | Discovered new exit (range 8) 654 | -10/Materials | Discovered new exit (range 7) 692 | -10/Materials | Discovered new exit (range 7) 813 | -10/Materials | Entered Mines 881 | -10/Mines | Received a Rocket Launcher from a helpful Derelict 910 | -10/Mines | Learned 2 Materials zone layouts 914 | -10/Mines | Learned 2 Materials zone layouts 979 | -10/Mines | Learned location of Zion (-7) 1212 | -10/Mines | Deemed a non-threat by the Exiles lab entrance 1214 | -10/Mines | Discovered new exit (range 5) 1362 | -10/Mines | Found a damaged Exp. Sensor Array with a note attached 1367 | -10/Mines | Found Prototype Device 1467 | -10/Mines | Discovered new exit (range 6) 1610 | -10/Mines | Assembled infested the area 1624 | -10/Mines | Core integrity fell below 20% 1632 | -10/Mines | Destroyed by as-87327 with Assembled Rifle Last Messages --------------- we'll never be afraid of an ambush while sneaking around Materials again, ha." 01366_ Dropped Sml. Laser. 01367_ Acquired Prototype Device. 01373_ R-06 Scavenger collects Sml. Laser. 01467_ EXIT=FOUND 01610_ ALERT: Infestation in the mines, dispatching Demolisher response squad. 01613_ R-06 Scavenger destroyed. 01620_ as-11708 destroyed. 01620_ as-03716 destroyed. 01623_ Critical hit (Burn: +80). 01629_ Destroyed Asb. F-torch. 01629_ as-45806 destroyed. 01629_ Ion Engine destroyed. 01629_ Destroyed Ion Engine. 01630_ as-25704 destroyed. 01632_ Aluminum Leg destroyed. 01632_ Destroyed Aluminum Leg. 01632_ Aluminum Leg destroyed. Map ----- +----------------------------------------------------+ | ?## #??????????????????## ### #??????? | | ?# #??????????????????# #?# #??????? | | ?# ##??????????????????# #??# #???????? | | ?# ######?????####?????# #???# #????????? | | ## ## ##???## ##????# ##?## ##???????? | | # ##??# ##???# ### ####????? | | #### ##### ####?? | | ## ###### ## #?? | | ?####????## ## #?? | | ??????????## ## ###### ##?? | | ???????????## ### #????# ###??? | | ????????????# #?# #????## ##????? | | ????????##### ### #?????## ##?????? | | ????????# #?????## ## ##??????? | | ????????# #####?##### t### #???????? | | ????????# #### #?##### #?# #???????? | | ????????# ???# ### #?# #???????? | | ??????? ????## ### k #?# #???????? | | ?????? ##??????#######?# ### ##??????? | | ?????#?????????????????# #### ##??????? | | ???????????????????????# #?## ###?????? | | ???????????????????????## #### ##????? | | ????????????????????????## ### #### #????? | | ????????#????????????#### #?###### #????? | | ????????# #####?#### ##????## #????? | | ????????# # # @ ##???## #????? | | ????????# [ aa aa ##???## #????? | | ????????# !%* a aa ##???### #????? | | ???????# =% % aaa #?????### #????? | | ????? #### a #???????# #????? | | ???????????????# ## # #???????# #????? | | ??????????????# ##?### #???????# #????? | | ??????????????# #??????# #???????# #????? | | ??????????????#????????##### ##???????# #????? | | ???????????????????????????## ##????????# #????? | | ????????????????????????????####??##?????# #####? | | ??????????????????????????????????# ##???# #? | | ??????????????????????????????????# #???###### #? | | ??????????????????????????????????# ##???????# #? | | ??????????????????????????????????## #####???# #? | | ???????????????????????????????????## ##??# #? | | ????????????????????????????????????## #### #? | | ?????????????????????????????????????## < #? | | ??????????????????????????????????????## #? | | ???????????????????????????????????????## ######? | | ????????????????????????????????????????####?????? | | ?????????????????????????????????????????????????? | | ?????????????????????????????????????????????????? | | ?????????????????????????????????????????????????? | | ?????????????????????????????????????????????????? | +----------------------------------------------------+ Best States ------------- Heat Dissipation 25 Energy Generation 10 Energy Capacity 250 Matter Stores 350 Matter Capacity 350 Sight Range 16 Terrain Scan Density 10 Evasion (%) 50 Item Schematics ----------------- None Robot Schematics ------------------ None Fabricated ------------ Nothing Alien Tech Used ----------------- None Achievements -------------- None Challenges ------------ None Game ------ Seed ExperimentalSlugComputer Manual? 0 Play Time 00:15:31 Cumulative 2.3 hours Start 2022.03.08 @ 18:45:45 End 2022.03.08 @ 19:00:37 Sessions 1 Manual Loads 0 Difficulty Rogue Special Mode None Game No. 3 Rogue 3 Adventurer 0 Explorer 0 Win Type - Total 0 Types 0/0/0/0/0/0/0/0/0 Lore% 1 Gallery% 6 Achievement% 4 Wizard Run 0 Options --------- ASCII 0 Keyboard 0 Movement Mouse Keybinds 0 Fullscreen 1 Font 18/SmallcapsGlow Map View 76x50 Tactical HUD 1 Map Filters NONE Filters NONE Steam 1 RUN: 4156b4e0-7eef-4c3f-a9a9-344b0667039c